[Event "41st Arco Open 2019"]
[Site "Arco"]
[Date "2019.10.12"]
[Round "9"]
[White "Horvath, Csaba"]
[Black "Fecker, Noah"]
[Result "1/2-1/2"]
[ECO "B40"]
[WhiteElo "2503"]
[BlackElo "2240"]
[Annotator "RC"]
[PlyCount "24"]
[EventDate "2019.10.04"]
[EventType "swiss"]
[EventCountry "ITA"]
[SourceTitle "playchess.com"]
[Source "ChessBase"]
[SourceQuality "1"]
[TimeControl "40/5400+30:1800+30"]

1. e4 {[%emt 0:00:30]} c5 {[%emt 0:00:30]} 2. Nf3 {[%emt 0:00:00]} e6 {[%emt 0:00:00]} 3. g3 {[%emt 0:00:00]} Nc6 {[%emt 0:02:00]} 4. Bg2 {[%emt 0:00:00]} Nf6 5. Qe2 {[%emt 0:01:00]} e5 {[%emt 0:05:00]} 6. O-O {[%emt 0:01:30]} Be7 {[%emt 0:00:30]} 7. c3 {[%emt 0:01:30]} O-O {[%emt 0:02:30]} 8. Rd1 {[%emt 0:20:30]} Re8 {[%emt 0:14:30]} 9. d4 {[%emt 0:02:30]} cxd4 {[%emt 0:06:30]} 10. cxd4 {[%emt 0:00:30]} exd4 {[%emt 0:03:30]} 11. e5 {[%emt 0:06:30]} Bf8 12. Qd3 {[%emt 0:05:30]} Nxe5 {[%emt 0:14:00]} 1/2-1/2

[Event "41st Arco Open 2019"]
[Site "Arco"]
[Date "2019.10.12"]
[Round "9"]
[White "Horvath, Jozsef"]
[Black "Huemmer Bernd"]
[Result "1-0"]
[ECO "D00"]
[WhiteElo "2450"]
[BlackElo "2150"]
[Annotator "ChessBase"]
[PlyCount "49"]
[EventDate "2019.10.04"]
[EventType "swiss"]
[EventCountry "ITA"]
[SourceTitle "playchess.com"]
[Source "ChessBase"]
[SourceQuality "1"]
[TimeControl "40/5400+30:1800+30"]

1. d4 {[%emt 0:00:30]} Nf6 {[%emt 0:00:30]} 2. Nc3 {[%emt 0:00:30]} d5 {[%emt 0:00:00]} 3. Bf4 {[%emt 0:00:00]} Nh5 {[%emt 0:06:00]} 4. Be5 {[%emt 0:23:00]} f6 5. e4 {[%emt 0:04:30]} g6 {[%emt 0:05:00]} 6. Bg3 {[%emt 0:00:30]} Nxg3 {[%emt 0:00:30]} 7. hxg3 {[%emt 0:00:30]} dxe4 {[%emt 0:10:30]} 8. Nxe4 Bg7 {[%emt 0:02:30]} 9. Bc4 {[%emt 0:11:00]} Nc6 {[%emt 0:07:30]} 10. c3 {[%emt 0:03:30]} Na5 {[%emt 0:04:30]} 11. Bd3 {[%emt 0:13:30]} Bf5 {[%emt 0:26:30]} 12. Nc5 {[%emt 0:06:30]} Bxd3 {[%emt 0:00:00]} 13. Qxd3 {[%emt 0:00:30]} Kf7 {[%emt 0:00:00]} 14. b4 {[%emt 0:07:30]} b6 {[%emt 0:16:29]} 15. Na6 Nb7 {[%emt 0:01:13]} 16. Qc4+ {[%emt 0:01:00]} e6 {[%emt 0:00:00]} 17. Nxc7 {[%emt 0:00:30]} Qc8 {[%emt 0:06:46]} 18. d5 {[%emt 0:17:02]} exd5 {[%emt 0:02:34]} 19. Qxd5+ {[%emt 0:00:00]} Ke7 {[%emt 0:03:14]} 20. Qe4+ {[%emt 0:00:00]} Kd7 {[%emt 0:00:35]} 21. Nb5 {[%emt 0:00:00]} Nd6 {[%emt 0:00:30]} 22. O-O-O {[%emt 0:01:30]} Bf8 {[%emt 0:01:55]} 23. Nf3 {[%emt 0:03:00]} Qa6 {[%emt 0:00:57]} 24. Qd5 {[%emt 0:02:37]} Rc8 {[%emt 0:00:30]} 25. Rhe1 {[%emt 0:01:24]} 1-0

[Event "41st Arco Open 2019"]
[Site "Arco"]
[Date "2019.10.12"]
[Round "9"]
[White "Sarkar, Justin"]
[Black "Scheftlein, Richard"]
[Result "1/2-1/2"]
[ECO "B14"]
[WhiteElo "2350"]
[BlackElo "2236"]
[Annotator "ChessBase"]
[PlyCount "33"]
[EventDate "2019.10.04"]
[EventType "swiss"]
[EventCountry "ITA"]
[SourceTitle "playchess.com"]
[Source "ChessBase"]
[SourceQuality "1"]
[TimeControl "40/5400+30:1800+30"]

1. d4 {[%emt 0:03:30]} Nf6 {[%emt 0:00:30]} 2. c4 {[%emt 0:00:00]} e6 {[%emt 0:03:30]} 3. Nc3 {[%emt 0:01:00]} Bb4 {[%emt 0:00:00]} 4. e3 {[%emt 0:01:30]} O-O 5. Bd3 {[%emt 0:01:30]} d5 {[%emt 0:00:00]} 6. Nf3 {[%emt 0:02:30]} c5 {[%emt 0:00:00]} 7. O-O {[%emt 0:00:30]} cxd4 {[%emt 0:02:30]} 8. exd4 {[%emt 0:00:00]} dxc4 {[%emt 0:00:30]} 9. Bxc4 {[%emt 0:01:00]} Nc6 {[%emt 0:00:30]} 10. Bg5 {[%emt 0:00:30]} Be7 {[%emt 0:01:30]} 11. Re1 {[%emt 0:21:30]} h6 {[%emt 0:32:30]} 12. Bf4 {[%emt 0:08:30]} b6 {[%emt 0:00:00]} 13. a3 {[%emt 0:15:30]} Bb7 {[%emt 0:00:00]} 14. Qd3 {[%emt 0:00:30]} Bd6 {[%emt 0:00:00]} 15. Bxd6 {[%emt 0:00:00]} Qxd6 {[%emt 0:00:00]} 16. d5 {[%emt 0:11:00]} exd5 {[%emt 0:00:00]} 17. Nxd5 {[%emt 0:00:30]} 1/2-1/2

[Event "41st Arco Open 2019"]
[Site "Arco"]
[Date "2019.10.12"]
[Round "9"]
[White "Favaloro, Andrea"]
[Black "Shehzad, Shazil"]
[Result "1/2-1/2"]
[ECO "A11"]
[WhiteElo "2338"]
[BlackElo "2140"]
[Annotator "ChessBase"]
[PlyCount "52"]
[EventDate "2019.10.04"]
[EventType "swiss"]
[EventCountry "ITA"]
[SourceTitle "playchess.com"]
[Source "ChessBase"]
[SourceQuality "1"]
[TimeControl "40/5400+30:1800+30"]

1. Nf3 {[%emt 0:02:30]} d5 {[%emt 0:00:30]} 2. g3 {[%emt 0:00:00]} c6 {[%emt 0:01:30]} 3. Bg2 {[%emt 0:00:00]} Bg4 {[%emt 0:00:00]} 4. c4 {[%emt 0:00:30]} e6 5. cxd5 {[%emt 0:00:30]} exd5 {[%emt 0:00:00]} 6. O-O {[%emt 0:00:00]} Nf6 {[%emt 0:00:00]} 7. Qb3 {[%emt 0:01:00]} Qc7 {[%emt 0:04:30]} 8. d3 Bd6 {[%emt 0:02:30]} 9. Nc3 {[%emt 0:06:00]} Nbd7 {[%emt 0:07:30]} 10. e4 {[%emt 0:01:30]} dxe4 {[%emt 0:01:30]} 11. dxe4 {[%emt 0:00:00]} Bxf3 12. Bxf3 {[%emt 0:00:00]} h5 {[%emt 0:08:00]} 13. Be2 {[%emt 0:21:30]} b5 {[%emt 0:07:30]} 14. Qc2 {[%emt 0:09:30]} b4 {[%emt 0:22:30]} 15. Na4 {[%emt 0:02:30]} Nb6 {[%emt 0:03:30]} 16. b3 {[%emt 0:15:30]} Nxa4 17. bxa4 {[%emt 0:00:00]} Be5 {[%emt 0:10:00]} 18. Rb1 {[%emt 0:02:00]} a5 19. Be3 {[%emt 0:03:30]} O-O {[%emt 0:03:00]} 20. f4 Bc3 {[%emt 0:00:30]} 21. e5 {[%emt 0:04:00]} Nd5 {[%emt 0:01:30]} 22. Bc5 h4 {[%emt 0:03:30]} 23. Qe4 {[%emt 0:04:00]} Rfe8 {[%emt 0:01:30]} 24. Bd3 {[%emt 0:00:30]} g6 {[%emt 0:02:30]} 25. gxh4 {[%emt 0:02:30]} Qd7 26. Qf3 {[%emt 0:21:52]} Bd2 {[%emt 0:07:02]} 1/2-1/2

[Event "41st Arco Open 2019"]
[Site "Arco"]
[Date "2019.10.12"]
[Round "9"]
[White "Molnar, Bela"]
[Black "Vezzosi, Paolo"]
[Result "0-1"]
[ECO "A53"]
[WhiteElo "2305"]
[BlackElo "2235"]
[Annotator "ChessBase"]
[PlyCount "76"]
[EventDate "2019.10.04"]
[EventType "swiss"]
[EventCountry "ITA"]
[SourceTitle "playchess.com"]
[Source "ChessBase"]
[SourceQuality "1"]
[TimeControl "40/5400+30:1800+30"]

1. e4 {[%emt 0:00:30]} c6 {[%emt 0:00:30]} 2. c4 {[%emt 0:00:30]} e5 {[%emt 0:00:00]} 3. Nf3 {[%emt 0:00:00]} d6 {[%emt 0:00:00]} 4. d4 {[%emt 0:00:00]} Qc7 5. Nc3 {[%emt 0:00:30]} Nf6 {[%emt 0:03:00]} 6. Be2 Bg4 {[%emt 0:00:30]} 7. Be3 {[%emt 0:02:00]} Nbd7 {[%emt 0:02:30]} 8. O-O Be7 {[%emt 0:00:30]} 9. Nd2 {[%emt 0:04:00]} Bxe2 {[%emt 0:01:30]} 10. Qxe2 {[%emt 0:00:00]} O-O {[%emt 0:02:30]} 11. d5 {[%emt 0:03:00]} Rfe8 12. Rfc1 {[%emt 0:10:30]} a5 {[%emt 0:23:00]} 13. b3 h6 {[%emt 0:00:30]} 14. a3 {[%emt 0:03:00]} Nh7 {[%emt 0:19:30]} 15. g3 {[%emt 0:31:30]} Bg5 {[%emt 0:01:30]} 16. f4 {[%emt 0:00:00]} exf4 {[%emt 0:00:30]} 17. gxf4 {[%emt 0:00:00]} Bf6 {[%emt 0:00:00]} 18. Qd3 {[%emt 0:00:00]} Rac8 {[%emt 0:00:00]} 19. Kh1 {[%emt 0:00:00]} Ndf8 {[%emt 0:18:30]} 20. Bd4 {[%emt 0:00:00]} Ng6 {[%emt 0:00:30]} 21. Rf1 {[%emt 0:00:00]} Qd8 {[%emt 0:02:30]} 22. Rae1 Bxd4 {[%emt 0:00:30]} 23. Qxd4 {[%emt 0:00:00]} Qh4 24. Re2 {[%emt 0:08:30]} Nf6 {[%emt 0:00:00]} 25. dxc6 {[%emt 0:04:30]} bxc6 26. f5 {[%emt 0:02:30]} Nf4 {[%emt 0:05:04]} 27. Qf2 {[%emt 0:12:51]} Qxf2 {[%emt 0:00:47]} 28. Rexf2 {[%emt 0:00:00]} Nd3 {[%emt 0:00:20]} 29. Rg2 {[%emt 0:00:00]} Rb8 {[%emt 0:00:52]} 30. Rf3 {[%emt 0:00:00]} Ne1 31. Rfg3 {[%emt 0:00:00]} Nxg2 {[%emt 0:00:30]} 32. Kxg2 Kf8 {[%emt 0:01:06]} 33. Rd3 {[%emt 0:01:39]} Ke7 {[%emt 0:00:00]} 34. c5 {[%emt 0:00:30]} dxc5 {[%emt 0:01:38]} 35. Nc4 {[%emt 0:05:43]} Rxb3 {[%emt 0:03:26]} 36. e5 {[%emt 0:00:00]} Ne4 {[%emt 0:01:58]} 37. f6+ {[%emt 0:00:00]} gxf6 {[%emt 0:02:09]} 38. exf6+ {[%emt 0:00:00]} Kf8 {[%emt 0:00:00]} 0-1

[Event "41st Arco Open 2019"]
[Site "Arco"]
[Date "2019.10.12"]
[Round "9"]
[White "Welling, Gerard"]
[Black "Kostov, Kiril"]
[Result "1-0"]
[ECO "D05"]
[WhiteElo "2302"]
[BlackElo "1832"]
[Annotator "ChessBase"]
[PlyCount "47"]
[EventDate "2019.10.04"]
[EventType "swiss"]
[EventCountry "ITA"]
[SourceTitle "playchess.com"]
[Source "ChessBase"]
[SourceQuality "1"]
[TimeControl "40/5400+30:1800+30"]

1. d4 {[%emt 0:00:30]} d5 {[%emt 0:01:30]} 2. Nf3 {[%emt 0:00:00]} Nf6 {[%emt 0:00:00]} 3. e3 {[%emt 0:00:00]} e6 {[%emt 0:01:00]} 4. Bd3 {[%emt 0:01:30]} c5 5. c3 {[%emt 0:00:30]} Nbd7 {[%emt 0:02:00]} 6. Nbd2 b6 {[%emt 0:00:30]} 7. O-O {[%emt 0:01:00]} Bb7 {[%emt 0:00:30]} 8. Ne5 {[%emt 0:02:30]} Nxe5 {[%emt 0:00:30]} 9. dxe5 {[%emt 0:00:00]} Nd7 {[%emt 0:00:00]} 10. f4 {[%emt 0:00:00]} Be7 {[%emt 0:01:00]} 11. e4 {[%emt 0:08:30]} Qc7 {[%emt 0:02:30]} 12. exd5 {[%emt 0:00:00]} exd5 {[%emt 0:00:30]} 13. Qg4 {[%emt 0:02:00]} g6 14. Nf3 {[%emt 0:01:30]} O-O-O {[%emt 0:06:00]} 15. f5 {[%emt 0:05:30]} gxf5 {[%emt 0:07:30]} 16. Qxf5 {[%emt 0:02:30]} Rdf8 {[%emt 0:04:30]} 17. Bh6 {[%emt 0:00:30]} Re8 {[%emt 0:01:30]} 18. Qxf7 {[%emt 0:16:30]} Nxe5 {[%emt 0:00:00]} 19. Nxe5 {[%emt 0:00:00]} Qxe5 {[%emt 0:06:00]} 20. Rae1 {[%emt 0:01:00]} Qd6 {[%emt 0:00:30]} 21. Bf5+ {[%emt 0:04:30]} Kd8 {[%emt 0:04:30]} 22. Re6 Qd7 {[%emt 0:01:30]} 23. Rxe7 {[%emt 0:00:00]} Qxe7 24. Bg5 {[%emt 0:00:30]} 1-0

[Event "41st Arco Open 2019"]
[Site "Arco"]
[Date "2019.10.12"]
[Round "9"]
[White "Sedina, Elena"]
[Black "Petrov, Nikita"]
[Result "0-1"]
[ECO "B07"]
[WhiteElo "2294"]
[BlackElo "2586"]
[Annotator "ChessBase"]
[PlyCount "55"]
[EventDate "2019.10.04"]
[EventType "swiss"]
[EventCountry "ITA"]
[SourceTitle "playchess.com"]
[Source "ChessBase"]
[SourceQuality "1"]
[TimeControl "40/5400+30:1800+30"]

1. e4 {[%emt 0:00:30]} d6 {[%emt 0:00:30]} 2. d4 {[%emt 0:00:30]} Nf6 {[%emt 0:00:30]} 3. Bd3 {[%emt 0:00:30]} e5 {[%emt 0:00:00]} 4. c3 {[%emt 0:00:30]} d5 5. dxe5 {[%emt 0:00:30]} Nxe4 {[%emt 0:01:30]} 6. Nf3 {[%emt 0:02:30]} Nc5 {[%emt 0:02:30]} 7. Bc2 {[%emt 0:03:30]} Bg4 {[%emt 0:07:30]} 8. Nbd2 {[%emt 0:14:30]} Nc6 {[%emt 0:12:30]} 9. O-O {[%emt 0:08:30]} Be7 {[%emt 0:05:30]} 10. b4 {[%emt 0:34:30]} Ne6 {[%emt 0:05:30]} 11. Qe2 {[%emt 0:03:30]} O-O {[%emt 0:35:30]} 12. Rd1 {[%emt 0:02:30]} Re8 {[%emt 0:00:00]} 13. b5 {[%emt 0:19:05]} Na5 {[%emt 0:00:00]} 14. Nf1 {[%emt 0:00:09]} Nc4 {[%emt 0:01:30]} 15. Ne3 Nxe3 {[%emt 0:07:45]} 16. Bxe3 {[%emt 0:04:15]} c6 17. c4 {[%emt 0:00:34]} d4 {[%emt 0:03:15]} 18. h3 Bxf3 {[%emt 0:01:18]} 19. Qxf3 {[%emt 0:01:00]} Bc5 20. bxc6 {[%emt 0:00:23]} bxc6 {[%emt 0:05:17]} 21. Bf5 Qc7 {[%emt 0:00:39]} 22. Bxe6 {[%emt 0:02:38]} dxe3 23. Rd7 {[%emt 0:00:51]} exf2+ {[%emt 0:01:20]} 24. Kf1 Qxe5 {[%emt 0:00:08]} 25. Qxf7+ {[%emt 0:00:28]} Kh8 26. Rad1 {[%emt 0:00:17]} Rxe6 {[%emt 0:03:39]} 27. Rd8+ {[%emt 0:00:23]} Re8 {[%emt 0:00:00]} 28. Qxe8+ {[%emt 0:00:00]} 0-1

[Event "41st Arco Open 2019"]
[Site "Arco"]
[Date "2019.10.12"]
[Round "9"]
[White "Dittmar, Peter"]
[Black "Cardili, Mariano"]
[Result "1-0"]
[ECO "D12"]
[WhiteElo "2253"]
[BlackElo "2079"]
[Annotator "ChessBase"]
[PlyCount "69"]
[EventDate "2019.10.04"]
[EventType "swiss"]
[EventCountry "ITA"]
[SourceTitle "playchess.com"]
[Source "ChessBase"]
[SourceQuality "1"]
[TimeControl "40/5400+30:1800+30"]

1. d4 {[%emt 0:00:30]} d5 {[%emt 0:00:30]} 2. c4 {[%emt 0:00:30]} c6 {[%emt 0:00:00]} 3. e3 {[%emt 0:00:00]} Nf6 {[%emt 0:00:00]} 4. Nf3 {[%emt 0:00:00]} Bf5 5. cxd5 {[%emt 0:02:30]} cxd5 {[%emt 0:04:00]} 6. Qb3 {[%emt 0:02:30]} Qc7 {[%emt 0:01:30]} 7. Bd2 {[%emt 0:00:00]} Nc6 {[%emt 0:00:30]} 8. Bb5 {[%emt 0:00:00]} e6 {[%emt 0:01:30]} 9. O-O {[%emt 0:00:30]} Bd6 {[%emt 0:03:30]} 10. Bb4 {[%emt 0:00:00]} O-O {[%emt 0:01:30]} 11. Bxc6 {[%emt 0:02:00]} bxc6 12. Nbd2 {[%emt 0:00:30]} Rab8 {[%emt 0:10:00]} 13. Bxd6 {[%emt 0:14:30]} Qxd6 {[%emt 0:00:30]} 14. Qc3 {[%emt 0:00:00]} Rfc8 {[%emt 0:11:30]} 15. Rfc1 {[%emt 0:00:00]} Nd7 {[%emt 0:05:30]} 16. Nb3 {[%emt 0:00:00]} f6 {[%emt 0:00:00]} 17. h3 {[%emt 0:00:00]} Bg6 {[%emt 0:03:00]} 18. Qa5 {[%emt 0:00:00]} Rb7 {[%emt 0:01:30]} 19. Rc3 {[%emt 0:00:00]} Be4 {[%emt 0:08:30]} 20. Nfd2 {[%emt 0:30:30]} Bg6 {[%emt 0:00:00]} 21. Rac1 {[%emt 0:00:00]} Be8 {[%emt 0:03:00]} 22. Qa6 {[%emt 0:00:00]} Rbc7 {[%emt 0:00:30]} 23. Nc5 {[%emt 0:00:00]} Nxc5 {[%emt 0:00:00]} 24. Rxc5 {[%emt 0:00:00]} Rb8 {[%emt 0:02:00]} 25. b3 {[%emt 0:00:00]} h5 {[%emt 0:02:30]} 26. Qe2 {[%emt 0:00:00]} g5 {[%emt 0:01:30]} 27. e4 {[%emt 0:17:30]} Bg6 {[%emt 0:00:00]} 28. Qf3 {[%emt 0:00:00]} Rf8 {[%emt 0:12:00]} 29. Qe3 {[%emt 0:00:00]} Rfc8 {[%emt 0:00:00]} 30. e5 {[%emt 0:00:00]} fxe5 31. Qxg5 {[%emt 0:00:00]} Rg7 {[%emt 0:10:34]} 32. Qxe5 {[%emt 0:00:00]} Qxe5 {[%emt 0:04:07]} 33. dxe5 {[%emt 0:00:00]} Be8 {[%emt 0:00:00]} 34. Nf3 Rb8 {[%emt 0:00:00]} 35. Nd4 {[%emt 0:00:00]} 1-0

[Event "41st Arco Open 2019"]
[Site "Arco"]
[Date "2019.10.12"]
[Round "9"]
[White "Pasini, Nicolo"]
[Black "Tocco, Paolo"]
[Result "1-0"]
[ECO "B00"]
[WhiteElo "2234"]
[BlackElo "2079"]
[Annotator "NA"]
[PlyCount "36"]
[EventDate "2019.10.04"]
[EventType "swiss"]
[EventCountry "ITA"]
[SourceTitle "playchess.com"]
[Source "ChessBase"]
[SourceQuality "1"]
[TimeControl "40/5400+30:1800+30"]

1. e4 {[%emt 0:01:30]} b6 {[%emt 0:00:30]} 2. d4 {[%emt 0:00:00]} Bb7 {[%emt 0:00:30]} 3. Bd3 {[%emt 0:00:00]} Nf6 {[%emt 0:00:00]} 4. Qe2 {[%emt 0:00:30]} e6 5. Nf3 {[%emt 0:00:00]} d5 {[%emt 0:00:00]} 6. e5 {[%emt 0:00:00]} Ne4 {[%emt 0:00:00]} 7. Nbd2 {[%emt 0:00:00]} Nxd2 {[%emt 0:00:00]} 8. Bxd2 c5 {[%emt 0:00:00]} 9. c3 {[%emt 0:00:30]} a5 {[%emt 0:00:00]} 10. Be3 {[%emt 0:00:30]} Ba6 {[%emt 0:01:00]} 11. Bb5+ {[%emt 0:18:30]} Bxb5 {[%emt 0:19:30]} 12. Qxb5+ {[%emt 0:00:30]} Nd7 {[%emt 0:00:00]} 13. O-O {[%emt 0:01:30]} Be7 {[%emt 0:00:00]} 14. c4 {[%emt 0:00:30]} O-O {[%emt 0:00:00]} 15. Rfd1 Qe8 {[%emt 0:00:00]} 16. cxd5 {[%emt 0:09:00]} exd5 17. Qc6 {[%emt 0:02:30]} Nxe5 {[%emt 0:02:00]} 18. Nxe5 {[%emt 0:00:00]} Qd8 {[%emt 0:00:30]} 1-0

[Event "41st Arco Open 2019"]
[Site "Arco"]
[Date "2019.10.12"]
[Round "9"]
[White "Leutwyler, Martin"]
[Black "Qendro, Llambi"]
[Result "0-1"]
[ECO "E90"]
[WhiteElo "2154"]
[BlackElo "2312"]
[Annotator "NA"]
[PlyCount "122"]
[EventDate "2019.10.04"]
[EventType "swiss"]
[EventCountry "ITA"]
[SourceTitle "playchess.com"]
[Source "ChessBase"]
[SourceQuality "1"]
[TimeControl "40/5400+30:1800+30"]

1. d4 {[%emt 0:00:30]} g6 {[%emt 0:00:30]} 2. c4 {[%emt 0:00:30]} Bg7 {[%emt 0:00:00]} 3. Nf3 {[%emt 0:00:00]} d6 {[%emt 0:00:00]} 4. Nc3 {[%emt 0:00:00]} Nf6 5. h3 {[%emt 0:00:30]} O-O {[%emt 0:01:00]} 6. e4 {[%emt 0:00:30]} e5 {[%emt 0:00:30]} 7. d5 {[%emt 0:00:00]} a5 {[%emt 0:01:30]} 8. g4 {[%emt 0:02:00]} Na6 {[%emt 0:00:30]} 9. Be3 {[%emt 0:00:00]} Nd7 {[%emt 0:01:30] E90: King's Indian: Classical: Early deviations and 6 h3} (9... Nc5 10. Nd2 c6 11. Be2 a4 12. h4 Qa5 13. f3 a3 14. Qc2 axb2 15. Qxb2 h5 16. g5 Nfd7 17. O-O f6 18. Kg2 Qd8 19. Nb3 fxg5 20. hxg5 {½-½ (67) Nepomniachtchi,I (2757)-Grischuk,A (2766) chess.com INT 2018}) 10. a3 {[%emt 0:00:00]} Nac5 {[%emt 0:05:30]} 11. Rg1 {[%emt 0:00:00]} a4 12. Nd2 {[%emt 0:01:00]} c6 {[%emt 0:05:00]} 13. Be2 {[%emt 0:07:30]} Nb6 $146 ({Predecessor:} 13... Kh8 14. Qc2 Qa5 15. h4 Rb8 16. h5 cxd5 17. cxd5 b5 18. g5 Re8 19. Kf1 {1-0 (42) Ovetchkin,R (2521)-Ivanov,M (2392) Vladivostok 2014}) 14. Qc2 {[%emt 0:02:30]} Bd7 {[%emt 0:12:00]} 15. h4 h6 {[%emt 0:00:30]} (15... cxd5 $14 16. cxd5 Rc8) 16. h5 {[%emt 0:08:00]} g5 {[%emt 0:03:30]} 17. f3 {[%emt 0:21:30]} cxd5 {[%emt 0:12:30]} 18. cxd5 {[%emt 0:00:00]} Rc8 {[%emt 0:00:30]} 19. Kf2 {[%emt 0:00:00]} Rc7 $16 {[%emt 0:02:30]} 20. Rgc1 {[%emt 0:00:00]} Qa8 {[%emt 0:00:00]} 21. Bb5 {[%emt 0:00:00]} Rfc8 {[%emt 0:03:00]} 22. Bxd7 {[%emt 0:05:30]} Rxd7 {[%emt 0:00:30]} 23. Bxc5 {[%emt 0:04:30]} Rxc5 {[%emt 0:02:30]} 24. Qd3 Rdc7 {[%emt 0:01:30]} 25. Ne2 {[%emt 0:05:00]} Qc8 {[%emt 0:02:30]} 26. Rc3 {[%emt 0:01:30]} Rxc3 {[%emt 0:02:30]} 27. Nxc3 {[%emt 0:00:00]} Nc4 28. Nxc4 {[%emt 0:01:00]} Rxc4 {[%emt 0:02:00]} 29. Qe3 {[%emt 0:05:30]} Bf6 {[%emt 0:05:30]} 30. Rc1 {[%emt 0:05:30]} Bd8 {[%emt 0:03:30]} 31. Ne2 {[%emt 0:02:30]} Ba5 {[%emt 0:02:30]} 32. Rxc4 {[%emt 0:06:30]} Qxc4 {[%emt 0:09:30]} 33. Ng3 {[%emt 0:01:30]} Qc2+ {[%emt 0:00:00]} 34. Qe2 {[%emt 0:01:30]} Qc5+ 35. Kg2 {[%emt 0:03:40]} Bb6 {[%emt 0:00:00]} 36. Qf1 Kh7 {[%emt 0:02:00]} 37. Kh3 {[%emt 0:11:06]} Ba5 {[%emt 0:00:00]} 38. Qe2 {[%emt 0:03:00]} b5 {[%emt 0:18:09]} 39. Nf5 {[%emt 0:03:33]} Qg1 {[%emt 0:03:10]} 40. Qg2 {[%emt 0:01:43]} Qe1 41. Ng3 {[%emt 0:06:28]} Qc1 {[%emt 0:14:11]} 42. Nf5 {[%emt 0:02:30]} Qc5 43. Qf1 {[%emt 0:01:30]} Bd2 {[%emt 0:04:17]} 44. Qe2 Ba5 {[%emt 0:00:00]} 45. Qf1 {[%emt 0:03:00]} Bb6 {[%emt 0:00:00]} 46. Qe2 {[%emt 0:01:30]} Qg1 {[%emt 0:15:02]} 47. Qg2 {[%emt 0:09:41]} Qe1 48. Kh2 {[%emt 0:00:00]} Bc5 {[%emt 0:00:00]} 49. Kh3 {[%emt 0:00:00]} Qc1 {[%emt 0:00:00]} 50. Kh2 {[%emt 0:03:16]} b4 {[%emt 0:00:00]} 51. axb4 {[%emt 0:00:00]} Bxb4 {[%emt 0:00:00]} 52. Kh3 {[%emt 0:00:00]} Bc5 {[%emt 0:00:00]} 53. Kh2 {[%emt 0:02:58]} Qe1 54. Kh3 {[%emt 0:00:00]} Bd4 {[%emt 0:00:00]} 55. Ng3 {[%emt 0:00:00]} Qb4 {[%emt 0:02:08]} 56. Qc2 {[%emt 0:03:17]} Qb3 {[%emt 0:00:15]} 57. Qc6 {[%emt 0:00:00]} Qxf3 {[%emt 0:00:00]} 58. Qxd6 {[%emt 0:00:00]} Bxb2 {[%emt 0:01:51]} 59. Kh2 {[%emt 0:02:01]} Bd4 {[%emt 0:00:00]} 60. Nf5 {[%emt 0:00:00]} Qf2+ {[%emt 0:00:00]} 61. Kh3 {[%emt 0:00:00]} Qf1+ {[%emt 0:00:00]} 0-1

[Event "41st Arco Open 2019"]
[Site "Arco"]
[Date "2019.10.12"]
[Round "9"]
[White "Heidel, Andre Nicolas"]
[Black "Bifulco, Michel"]
[Result "0-1"]
[ECO "D02"]
[WhiteElo "2140"]
[BlackElo "2261"]
[Annotator "NA"]
[PlyCount "118"]
[EventDate "2019.10.04"]
[EventType "swiss"]
[EventCountry "ITA"]
[SourceTitle "playchess.com"]
[Source "ChessBase"]
[SourceQuality "1"]
[TimeControl "40/5400+30:1800+30"]

1. d4 {[%emt 0:00:00]} d5 {[%emt 0:00:30]} 2. Nf3 {[%emt 0:00:00]} Nf6 {[%emt 0:00:00]} 3. g3 {[%emt 0:00:30]} c6 {[%emt 0:01:00]} 4. Bg2 {[%emt 0:00:00]} g6 5. O-O {[%emt 0:00:00]} Bg7 {[%emt 0:00:00]} 6. b3 {[%emt 0:00:30]} a5 {[%emt 0:00:30]} 7. c4 {[%emt 0:01:30]} a4 {[%emt 0:03:30]} 8. Bb2 {[%emt 0:07:30]} b5 {[%emt 0:04:30]} 9. cxb5 {[%emt 0:06:30]} cxb5 {[%emt 0:00:30]} 10. Ne5 {[%emt 0:03:30]} O-O {[%emt 0:01:30]} 11. b4 {[%emt 0:11:30]} Bf5 {[%emt 0:05:30]} 12. Na3 {[%emt 0:05:30]} Qb6 {[%emt 0:03:30]} 13. Rc1 {[%emt 0:02:30]} Na6 14. Qd2 $11 {[%emt 0:08:30]} Rac8 {[%emt 0:06:00]} 15. e3 {[%emt 0:00:00]} Ne4 {[%emt 0:05:30]} 16. Bxe4 {[%emt 0:15:00]} dxe4 {[%emt 0:00:30]} 17. d5 {[%emt 0:00:30]} Bh3 {[%emt 0:07:30]} 18. Rxc8 {[%emt 0:09:30]} Rxc8 {[%emt 0:37:30]} 19. Nc6 {[%emt 0:05:30]} Bxb2 {[%emt 0:00:00]} 20. Qxb2 {[%emt 0:04:31]} Rxc6 {[%emt 0:00:00]} 21. dxc6 {[%emt 0:00:19]} Bxf1 {[%emt 0:00:00]} 22. Kxf1 {[%emt 0:00:30]} Qxc6 {[%emt 0:00:00]} 23. Kg2 {[%emt 0:02:10]} Nc7 24. Qe5 {[%emt 0:01:39]} e6 {[%emt 0:00:00]} 25. g4 {[%emt 0:00:00]} h6 {[%emt 0:00:00]} 26. h4 {[%emt 0:02:52]} Nd5 {[%emt 0:09:04]} 27. Qb8+ {[%emt 0:01:49]} Kg7 {[%emt 0:00:01]} 28. Nxb5 {[%emt 0:00:45]} Nxb4 {[%emt 0:00:30]} 29. Nd4 {[%emt 0:01:36]} Qc5 {[%emt 0:06:23]} 30. Qb7 {[%emt 0:00:30]} Qd6 {[%emt 0:00:22]} 31. a3 {[%emt 0:02:43]} Nd5 {[%emt 0:00:00]} 32. Qa7 {[%emt 0:01:20]} e5 {[%emt 0:02:02]} 33. Qxa4 exd4 {[%emt 0:02:48]} 34. Qxd4+ {[%emt 0:04:37]} Kh7 35. Qxe4 {[%emt 0:00:55]} Nf6 {[%emt 0:00:00]} 36. Qc4 Kg8 {[%emt 0:04:53]} 37. a4 {[%emt 0:01:18]} Nd7 {[%emt 0:02:59]} 38. Qc8+ {[%emt 0:01:28]} Kh7 39. Qb7 {[%emt 0:00:00]} Qe6 {[%emt 0:00:00]} 40. Kg3 {[%emt 0:01:52]} Nf6 {[%emt 0:00:00]} 41. Qb4 {[%emt 0:04:06]} h5 {[%emt 0:04:28]} 42. gxh5 {[%emt 0:01:30]} Ne4+ {[%emt 0:00:00]} 43. Kh2 {[%emt 0:01:30]} Qg4 {[%emt 0:11:35]} 44. hxg6+ {[%emt 0:06:47]} Kxg6 {[%emt 0:00:12]} 45. Qe7 {[%emt 0:00:00]} Qf3 {[%emt 0:02:30]} 46. h5+ {[%emt 0:02:01]} Qxh5+ {[%emt 0:07:46]} 47. Kg2 {[%emt 0:00:53]} Qg4+ {[%emt 0:00:00]} 48. Kf1 {[%emt 0:00:39]} Qd1+ {[%emt 0:01:02]} 49. Kg2 {[%emt 0:00:30]} Qxa4 {[%emt 0:00:30]} 50. Qh4 {[%emt 0:00:39]} Qc6 {[%emt 0:00:25]} 51. Qg4+ {[%emt 0:05:23]} Ng5+ {[%emt 0:00:05]} 52. f3 {[%emt 0:02:44]} Qc2+ {[%emt 0:01:17]} 53. Kg3 {[%emt 0:00:55]} Qc1 54. e4 {[%emt 0:03:23]} Qg1+ {[%emt 0:05:23]} 55. Kf4 Qh2+ {[%emt 0:01:30]} 56. Ke3 {[%emt 0:00:48]} Qe5 57. Qg2 {[%emt 0:00:53]} Kf6 {[%emt 0:01:32]} 58. Qc2 Ne6 {[%emt 0:01:03]} 59. f4 {[%emt 0:01:28]} Qxf4+ {[%emt 0:00:30]} 0-1